[Event "II Zicosur 2016"]
[Site "Antofagasta"]
[Date "2016.01.07"]
[Round "5"]
[White "Garcia Cardenas, Pablo"]
[Black "Vera Siguenas, Deivy"]
[Result "1-0"]
[ECO "E63"]
[WhiteElo "2405"]
[BlackElo "2498"]
[Annotator "Robot 9"]
[PlyCount "197"]
[EventDate "2016.??.??"]
[EventCountry "CHI"]
[TimeControl "5400+30"]

1. d4 {[%emt 0:00:00]} Nf6 {[%emt 0:00:00]} 2. c4 {[%emt 0:00:00]} g6 {[%emt 0:
00:00]} 3. Nf3 {[%emt 0:00:00]} Bg7 {[%emt 0:00:00]} 4. g3 {[%emt 0:00:15]} O-O
{[%emt 0:00:00]} 5. Bg2 {[%emt 0:00:04]} d6 {[%emt 0:00:00]} 6. O-O {[%emt 0:
00:29]} Nc6 {[%emt 0:00:06]} 7. Nc3 {[%emt 0:00:38]} a6 {[%emt 0:00:04]} 8. Bf4
{[%emt 0:00:37]} h6 {[%emt 0:00:10]} 9. h3 {[%emt 0:00:51]} Rb8 {[%emt 0:00:10]
} 10. Rc1 {[%emt 0:00:40]} g5 {[%emt 0:01:01]} 11. Bd2 {[%emt 0:00:24]} Bd7 {
[%emt 0:06:43]} 12. b3 {[%emt 0:09:05]} e6 {[%emt 0:18:52]} 13. d5 {[%emt 0:05:
52]} Ne7 {[%emt 0:00:34]} 14. e4 {[%emt 0:13:50]} Ng6 {[%emt 0:01:59]} 15. dxe6
{[%emt 0:05:28]} fxe6 {[%emt 0:03:39]} 16. e5 {[%emt 0:02:28]} dxe5 {[%emt 0:
01:02]} 17. Re1 {[%emt 0:02:00]} Nh7 {[%emt 0:10:55]} 18. Qc2 {[%emt 0:04:18]}
Qf6 {[%emt 0:03:44]} 19. Ne4 {[%emt 0:02:32]} Qf7 {[%emt 0:00:37]} 20. Bb4 {
[%emt 0:06:59]} Rfe8 {[%emt 0:01:07]} 21. Re2 {[%emt 0:04:45]} Bc6 {[%emt 0:01:
20]} 22. Bc3 {[%emt 0:05:14]} Nhf8 {[%emt 0:06:32]} 23. Rce1 {[%emt 0:02:30]}
Nd7 {[%emt 0:01:30]} 24. Qb2 {[%emt 0:01:10]} Rbd8 {[%emt 0:02:50]} 25. Qa1 {
[%emt 0:03:12]} Qf5 {[%emt 0:09:28]} 26. Re3 {[%emt 0:02:34]} b5 {[%emt 0:15:
48]} 27. cxb5 {[%emt 0:00:40]} axb5 {[%emt 0:00:23]} 28. Ned2 {[%emt 0:04:42]}
Rf8 {[%emt 0:03:27]} 29. Qc1 {[%emt 0:01:48]} Bd5 {[%emt 0:00:59]} 30. a4 {
[%emt 0:01:30]} bxa4 {[%emt 0:00:35]} 31. bxa4 {[%emt 0:00:01]} h5 {[%emt 0:00:
32]} 32. Qb1 {[%emt 0:05:35]} g4 {[%emt 0:01:39]} 33. hxg4 {[%emt 0:02:49]}
Qxb1 {[%emt 0:03:54]} 34. Nxb1 {[%emt 0:00:45]} hxg4 {[%emt 0:00:04]} 35. Nh2 {
[%emt 0:00:44]} Bxg2 {[%emt 0:00:32]} 36. Kxg2 {[%emt 0:00:01]} Nf6 {[%emt 0:
00:10]} 37. R3e2 {[%emt 0:01:39]} Ra8 {[%emt 0:01:25]} 38. a5 {[%emt 0:00:45]}
Rfd8 {[%emt 0:03:12]} 39. Bxe5 {[%emt 0:01:22]} Nxe5 {[%emt 0:00:15]} 40. Rxe5
{[%emt 0:00:01]} Rd5 {[%emt 0:00:14]} 41. Rxe6 {[%emt 0:00:17]} Rdxa5 {[%emt 0:
03:13]} 42. Nc3 {[%emt 0:01:41]} Rf8 {[%emt 0:01:11]} 43. Ne4 {[%emt 0:00:47]}
Ra4 {[%emt 0:00:03]} 44. Nxf6+ {[%emt 0:00:12]} Rxf6 {[%emt 0:00:04]} 45. R6e4
{[%emt 0:00:10]} Rxe4 {[%emt 0:00:11]} 46. Rxe4 {[%emt 0:00:01]} c5 {[%emt 0:
00:05]} 47. Re8+ {[%emt 0:02:27]} Bf8 {[%emt 0:00:38]} 48. Nxg4 {[%emt 0:00:02]
} Rc6 {[%emt 0:00:06]} 49. Ne5 {[%emt 0:00:05]} Rc7 {[%emt 0:01:58]} 50. Ng6 {
[%emt 0:01:06]} Kf7 {[%emt 0:00:02]} 51. Rxf8+ {[%emt 0:00:05]} Kxg6 {[%emt 0:
00:02]} 52. Rf3 {[%emt 0:07:24]} c4 {[%emt 0:00:05]} 53. Rc3 {[%emt 0:00:01]}
Kf5 {[%emt 0:00:03]} 54. Kf3 {[%emt 0:00:05]} Ke5 {[%emt 0:00:02]} 55. Ke3 {
[%emt 0:00:26]} Kd5 {[%emt 0:00:03]} 56. g4 {[%emt 0:00:18]} Re7+ {[%emt 0:00:
06]} 57. Kf4 {[%emt 0:00:43]} Kd4 {[%emt 0:00:43]} 58. Rc1 {[%emt 0:00:19]}
Rf7+ {[%emt 0:00:03]} 59. Kg3 {[%emt 0:00:04]} Kd3 {[%emt 0:00:47]} 60. g5 {
[%emt 0:00:10]} c3 {[%emt 0:00:02]} 61. f4 {[%emt 0:00:12]} Kd2 {[%emt 0:00:07]
} 62. Ra1 {[%emt 0:00:54]} c2 {[%emt 0:03:15]} 63. Kf3 {[%emt 0:03:19]} Ra7 {
[%emt 0:01:06]} 64. Rf1 {[%emt 0:01:39]} Ra3+ {[%emt 0:00:06]} 65. Kg4 {
[%emt 0:00:19]} Re3 {[%emt 0:00:08]} 66. Ra1 {[%emt 0:00:26]} Ra3 {[%emt 0:00:
17]} 67. Rf1 {[%emt 0:00:57]} Re3 {[%emt 0:00:02]} 68. g6 {[%emt 0:00:41]} Re1
{[%emt 0:00:08]} 69. Rxe1 {[%emt 0:00:02]} Kxe1 {[%emt 0:00:05]} 70. g7 {
[%emt 0:00:01]} Kf2 {[%emt 0:00:32]} 71. g8=Q {[%emt 0:00:06]} c1=Q {[%emt 0:
00:04]} 72. Qa2+ {[%emt 0:00:31]} Ke3 {[%emt 0:00:04]} 73. Qe6+ {[%emt 0:00:06]
} Kd3 {[%emt 0:00:15]} 74. Qd5+ {[%emt 0:00:05]} Ke3 {[%emt 0:00:28]} 75. Qe5+
{[%emt 0:00:12]} Kd3 {[%emt 0:00:05]} 76. f5 {[%emt 0:01:02]} Qc4+ {[%emt 0:01:
08]} 77. Kg5 {[%emt 0:00:23]} Qg8+ {[%emt 0:01:19]} 78. Kh6 {[%emt 0:00:07]}
Qf8+ {[%emt 0:00:04]} 79. Kg6 {[%emt 0:00:03]} Qg8+ {[%emt 0:00:03]} 80. Qg7 {
[%emt 0:00:04]} Qe8+ {[%emt 0:00:03]} 81. Qf7 {[%emt 0:00:23]} Qe4 {[%emt 0:00:
05]} 82. Qb3+ {[%emt 0:00:18]} Kd2 {[%emt 0:00:04]} 83. Kg5 {[%emt 0:03:11]}
Qe5 {[%emt 0:00:41]} 84. Kg6 {[%emt 0:00:37]} Qe4 {[%emt 0:00:04]} 85. Qe6 {
[%emt 0:00:18]} Qb1 {[%emt 0:01:05]} 86. Qd5+ {[%emt 0:00:09]} Ke3 {[%emt 0:00:
21]} 87. Qc5+ {[%emt 0:00:35]} Kf4 {[%emt 0:01:28]} 88. Qd4+ {[%emt 0:00:04]}
Kf3 {[%emt 0:00:08]} 89. Kf6 {[%emt 0:00:56]} Qb8 {[%emt 0:00:30]} 90. Qd3+ {
[%emt 0:00:09]} Kf4 {[%emt 0:00:31]} 91. Qf1+ {[%emt 0:00:17]} Ke3 {[%emt 0:00:
36]} 92. Qe1+ {[%emt 0:00:06]} Kf3 {[%emt 0:00:10]} 93. Kf7 {[%emt 0:00:44]}
Qb3+ {[%emt 0:01:35]} 94. Qe6 {[%emt 0:00:15]} Qb7+ {[%emt 0:00:05]} 95. Kg6 {
[%emt 0:00:08]} Qb1 {[%emt 0:00:03]} 96. Qd5+ {[%emt 0:00:13]} Ke3 {[%emt 0:00:
43]} 97. Kf7 {[%emt 0:01:08]} Kf4 {[%emt 0:01:31]} 98. f6 {[%emt 0:00:02]} Qh7+
{[%emt 0:01:04]} 99. Ke8 {[%emt 0:00:34] Ke4} 1-0

[Event "II Zicosur 2016"]
[Site "Antofagasta"]
[Date "2016.01.07"]
[Round "5"]
[White "Pichot, Alan"]
[Black "Cruz, Cristhian"]
[Result "1-0"]
[ECO "C18"]
[WhiteElo "2517"]
[BlackElo "2553"]
[Annotator "Robot 9"]
[PlyCount "61"]
[EventDate "2016.??.??"]
[EventCountry "CHI"]
[TimeControl "5400+30"]

1. e4 {[%emt 0:00:00]} e6 {[%emt 0:00:00]} 2. d4 {[%emt 0:00:00]} d5 {[%emt 0:
00:00]} 3. Nc3 {[%emt 0:00:00]} Bb4 {[%emt 0:01:02]} 4. e5 {[%emt 0:01:02]} c5
{[%emt 0:00:38]} 5. a3 {[%emt 0:00:08]} Bxc3+ {[%emt 0:00:05]} 6. bxc3 {
[%emt 0:00:05]} Qa5 {[%emt 0:00:18]} 7. Bd2 {[%emt 0:00:13]} Qa4 {[%emt 0:00:
07]} 8. Qb1 {[%emt 0:04:08]} c4 {[%emt 0:01:10]} 9. h4 {[%emt 0:01:02]} Nc6 {
[%emt 0:01:04]} 10. h5 {[%emt 0:02:13]} h6 {[%emt 0:02:03]} 11. Ne2 {[%emt 0:
04:21]} Nge7 {[%emt 0:04:31]} 12. Rh3 {[%emt 0:07:50]} Bd7 {[%emt 0:01:23]} 13.
Rf3 {[%emt 0:01:24]} Rf8 {[%emt 0:04:27]} 14. g4 {[%emt 0:06:23]} O-O-O {
[%emt 0:01:24]} 15. g5 {[%emt 0:06:12]} Nf5 {[%emt 0:25:18]} 16. Bh3 {[%emt 0:
06:36]} hxg5 {[%emt 0:03:48]} 17. Bxf5 {[%emt 0:04:45]} exf5 {[%emt 0:00:42]}
18. Bxg5 {[%emt 0:00:09]} Rde8 {[%emt 0:01:32]} 19. Kf1 {[%emt 0:07:23]} Nd8 {
[%emt 0:14:16]} 20. Bxd8 {[%emt 0:02:51]} Rxd8 {[%emt 0:00:02]} 21. Nf4 {
[%emt 0:01:18]} Rh8 {[%emt 0:06:31]} 22. Ke2 {[%emt 0:06:22]} Be6 {[%emt 0:06:
42]} 23. Rg3 {[%emt 0:03:37]} Rh7 {[%emt 0:02:01]} 24. Kd2 {[%emt 0:01:43]} Qe8
{[%emt 0:03:39]} 25. Qg1 {[%emt 0:03:08]} Qh8 {[%emt 0:00:09]} 26. Qg2 {
[%emt 0:01:28]} g6 {[%emt 0:07:29]} 27. hxg6 {[%emt 0:05:55]} Rh4 {[%emt 0:00:
11]} 28. Rh3 {[%emt 0:02:56]} Rxh3 {[%emt 0:00:54]} 29. Qxh3 {[%emt 0:00:40]}
Qxh3 {[%emt 0:00:05]} 30. Nxh3 {[%emt 0:00:05]} fxg6 {[%emt 0:00:01]} 31. Ng5 {
[%emt 0:00:20]} 1-0

[Event "II Zicosur 2016"]
[Site "Antofagasta"]
[Date "2016.01.07"]
[Round "5"]
[White "Granda Zuniga, Julio E"]
[Black "Alarcon Bahamondes, Roberto"]
[Result "1-0"]
[ECO "A03"]
[WhiteElo "2683"]
[BlackElo "2257"]
[Annotator "Robot 9"]
[PlyCount "85"]
[EventDate "2016.??.??"]
[EventCountry "CHI"]
[TimeControl "5400+30"]

1. f4 {[%emt 0:00:00]} d5 {[%emt 0:00:00]} 2. Nf3 {[%emt 0:00:00]} g6 {[%emt 0:
00:02]} 3. d3 {[%emt 0:00:00]} Bg7 {[%emt 0:00:09]} 4. Nbd2 {[%emt 0:00:00]}
Nh6 {[%emt 0:01:47]} 5. e4 {[%emt 0:00:00]} c6 {[%emt 0:04:34]} 6. e5 {[%emt 0:
00:48]} O-O {[%emt 0:00:45]} 7. Be2 {[%emt 0:00:46]} f6 {[%emt 0:02:05]} 8. Nb3
{[%emt 0:00:02]} b6 {[%emt 0:08:04]} 9. c3 {[%emt 0:00:20]} c5 {[%emt 0:00:53]}
10. d4 {[%emt 0:00:08]} c4 {[%emt 0:08:24]} 11. Nbd2 {[%emt 0:00:07]} Ng4 {
[%emt 0:02:08]} 12. Nf1 {[%emt 0:00:11]} Nc6 {[%emt 0:02:17]} 13. h3 {[%emt 0:
01:29]} Nh6 {[%emt 0:02:25]} 14. g4 {[%emt 0:00:04]} b5 {[%emt 0:03:18]} 15.
Ng3 {[%emt 0:04:52]} f5 {[%emt 0:02:58]} 16. g5 {[%emt 0:00:10]} Nf7 {[%emt 0:
00:55]} 17. h4 {[%emt 0:00:02]} Qb6 {[%emt 0:03:12]} 18. h5 {[%emt 0:00:08]} a5
{[%emt 0:01:57]} 19. Nh4 {[%emt 0:01:14]} Ncd8 {[%emt 0:01:34]} 20. Bf3 {
[%emt 0:00:11]} Bb7 {[%emt 0:03:38]} 21. Qe2 {[%emt 0:00:02]} Re8 {[%emt 0:02:
56]} 22. Be3 {[%emt 0:00:43]} Nh8 {[%emt 0:00:58]} 23. hxg6 {[%emt 0:02:58]}
hxg6 {[%emt 0:00:12]} 24. Qh2 {[%emt 0:01:11]} Rf8 {[%emt 0:13:50]} 25. Nhxf5
Rxf5 {[%emt 0:01:18]} 26. Nxf5 {[%emt 0:00:26]} gxf5 {[%emt 0:00:23]} 27. Qh7+
{[%emt 0:00:02]} Kf8 {[%emt 0:00:22]} 28. Qxf5+ {[%emt 0:00:00]} Kg8 {[%emt 0:
00:36]} 29. Qh7+ {[%emt 0:00:13]} Kf8 {[%emt 0:00:30]} 30. f5 {[%emt 0:00:13]}
Bxe5 {[%emt 0:02:23]} 31. f6 {[%emt 0:00:45]} Nhf7 {[%emt 0:00:09]} 32. Qg7+ {
[%emt 0:00:08]} Ke8 33. Qg8+ {[%emt 0:00:02]} Kd7 {[%emt 0:01:09]} 34. Bg4+ {
[%emt 0:00:03]} e6 {[%emt 0:03:45]} 35. Rh7 {[%emt 0:00:14]} Bg3+ {[%emt 0:04:
59]} 36. Ke2 {[%emt 0:00:09]} b4 {[%emt 0:00:30]} 37. Rxf7+ Kc8 38. Rf8 {
[%emt 0:00:46]} bxc3 {[%emt 0:01:13]} 39. bxc3 {[%emt 0:00:24]} Qb2+ {[%emt 0:
00:16]} 40. Kf3 {[%emt 0:00:09]} Qxa1 {[%emt 0:00:28]} 41. Kxg3 {[%emt 0:00:22]
} Qe1+ {[%emt 0:01:06]} 42. Bf2 {[%emt 0:00:09]} Qxc3+ {[%emt 0:00:14]} 43. Kg2
{[%emt 0:00:04]} 1-0

[Event "II Zicosur 2016"]
[Site "Antofagasta"]
[Date "2016.01.07"]
[Round "5"]
[White "Perez Ponsa, Federico"]
[Black "Cheparinov, Ivan"]
[Result "1/2-1/2"]
[ECO "C84"]
[WhiteElo "2577"]
[BlackElo "2682"]
[Annotator "Robot 9"]
[PlyCount "76"]
[EventDate "2016.??.??"]
[EventCountry "CHI"]
[TimeControl "5400+30"]

1. e4 {[%emt 0:00:00]} e5 {[%emt 0:00:00]} 2. Nf3 {[%emt 0:00:00]} Nc6 {
[%emt 0:00:00]} 3. Bb5 {[%emt 0:00:00]} a6 {[%emt 0:00:00]} 4. Ba4 {[%emt 0:00:
00]} Nf6 {[%emt 0:00:00]} 5. O-O {[%emt 0:00:00]} Be7 {[%emt 0:00:00]} 6. d3 {
[%emt 0:00:39]} b5 {[%emt 0:00:04]} 7. Bb3 {[%emt 0:00:04]} d6 {[%emt 0:00:24]}
8. a3 {[%emt 0:00:12]} O-O {[%emt 0:00:11]} 9. Nc3 {[%emt 0:00:05]} Rb8 {
[%emt 0:02:10]} 10. h3 {[%emt 0:02:37]} Na5 {[%emt 0:02:43]} 11. Ba2 {[%emt 0:
00:06]} c5 {[%emt 0:00:07]} 12. Bg5 {[%emt 0:06:16]} Be6 {[%emt 0:06:05]} 13.
Bxf6 {[%emt 0:04:26]} Bxf6 {[%emt 0:00:06]} 14. Nd5 {[%emt 0:00:16]} c4 {
[%emt 0:01:36]} 15. dxc4 {[%emt 0:01:19]} Nxc4 {[%emt 0:00:25]} 16. Bxc4 {
[%emt 0:10:10]} bxc4 {[%emt 0:00:07]} 17. b3 {[%emt 0:00:26]} cxb3 {[%emt 0:06:
24]} 18. cxb3 {[%emt 0:00:05]} Bxd5 {[%emt 0:04:13]} 19. Qxd5 {[%emt 0:00:06]}
Rb5 {[%emt 0:00:05]} 20. Qd3 {[%emt 0:07:43]} d5 {[%emt 0:00:06]} 21. Rab1 {
[%emt 0:06:35]} dxe4 {[%emt 0:06:44]} 22. Qxe4 {[%emt 0:00:06]} Qa5 {[%emt 0:
00:20]} 23. a4 {[%emt 0:05:43]} Rb4 {[%emt 0:03:55]} 24. Qc2 {[%emt 0:00:30]}
h6 {[%emt 0:00:30]} 25. Nd2 {[%emt 0:00:30]} Rd8 {[%emt 0:00:30]} 26. Nc4 {
[%emt 0:04:34]} Qc5 {[%emt 0:16:15]} 27. Rfd1 {[%emt 0:01:05]} Rd4 {[%emt 0:01:
20]} 28. Rxd4 {[%emt 0:06:07]} exd4 {[%emt 0:00:08]} 29. Qe4 {[%emt 0:02:49]}
Rb8 {[%emt 0:00:32]} 30. g3 {[%emt 0:06:40]} Qb4 {[%emt 0:04:39]} 31. Kg2 {
[%emt 0:03:54]} Rd8 {[%emt 0:02:07]} 32. Qd3 {[%emt 0:03:56]} Qc3 {[%emt 0:01:
22]} 33. Qxc3 {[%emt 0:00:11]} dxc3 {[%emt 0:03:50]} 34. b4 {[%emt 0:00:55]}
Rd4 {[%emt 0:00:05]} 35. Ne3 {[%emt 0:01:32]} Rd2 {[%emt 0:09:44]} 36. b5 {
[%emt 0:01:28]} Bd4 {[%emt 0:06:22]} 37. Kf3 {[%emt 0:01:14]} Rb2 {[%emt 0:00:
13]} 38. Rd1 {[%emt 0:00:30]} Bxe3 {[%emt 0:00:05]} 1/2-1/2

[Event "II Zicosur 2016"]
[Site "Antofagasta"]
[Date "2016.01.07"]
[Round "5"]
[White "Tiviakov, Sergei"]
[Black "Delgado Ramirez, Neuris"]
[Result "1/2-1/2"]
[ECO "B52"]
[WhiteElo "2611"]
[BlackElo "2609"]
[Annotator "Robot 9"]
[PlyCount "41"]
[EventDate "2016.??.??"]
[EventCountry "CHI"]
[TimeControl "5400+30"]

1. e4 {[%emt 0:00:00]} c5 {[%emt 0:00:00]} 2. Nf3 {[%emt 0:00:00]} d6 {[%emt 0:
00:00]} 3. Bb5+ {[%emt 0:00:00]} Bd7 {[%emt 0:00:00]} 4. Bxd7+ {[%emt 0:00:00]}
Nxd7 {[%emt 0:00:00]} 5. Nc3 {[%emt 0:00:02]} e6 {[%emt 0:00:08]} 6. O-O {
[%emt 0:00:07]} Ngf6 {[%emt 0:00:08]} 7. d3 {[%emt 0:00:06]} Be7 {[%emt 0:00:
11]} 8. Ng5 {[%emt 0:00:20]} Ne5 {[%emt 0:00:43]} 9. f4 {[%emt 0:00:11]} Nc6 {
[%emt 0:00:04]} 10. Kh1 {[%emt 0:00:55]} Nd7 {[%emt 0:01:07]} 11. Be3 {[%emt 0:
03:12]} Bxg5 {[%emt 0:01:00]} 12. fxg5 {[%emt 0:00:09]} Nde5 {[%emt 0:00:08]}
13. Qd2 {[%emt 0:00:34]} Qe7 {[%emt 0:00:26]} 14. a3 {[%emt 0:00:26]} O-O {
[%emt 0:00:17]} 15. Ne2 {[%emt 0:00:22]} f6 {[%emt 0:00:48]} 16. gxf6 {[%emt 0:
00:20]} Rxf6 {[%emt 0:00:08]} 17. Bg5 {[%emt 0:00:23]} Rxf1+ {[%emt 0:00:06]}
18. Rxf1 {[%emt 0:00:04]} Qd7 {[%emt 0:00:26]} 19. Qe3 {[%emt 0:00:20]} h6 {
[%emt 0:00:33]} 20. Bh4 {[%emt 0:00:10]} Rf8 {[%emt 0:00:12]} 21. Rxf8+ {
[%emt 0:00:05]} 1/2-1/2

[Event "II Zicosur 2016"]
[Site "Antofagasta"]
[Date "2016.01.07"]
[Round "5"]
[White "El Debs, Felipe de Cresce"]
[Black "Escalante Ramirez, Brian Sebasti"]
[Result "0-1"]
[ECO "E92"]
[WhiteElo "2514"]
[BlackElo "2331"]
[Annotator "Robot 9"]
[PlyCount "78"]
[EventDate "2016.??.??"]
[EventCountry "CHI"]
[TimeControl "5400+30"]

1. d4 {[%emt 0:00:00]} Nf6 {[%emt 0:00:01]} 2. c4 {[%emt 0:00:00]} g6 {[%emt 0:
00:04]} 3. Nc3 {[%emt 0:00:00]} Bg7 {[%emt 0:00:03]} 4. e4 {[%emt 0:00:03]} d6
{[%emt 0:00:05]} 5. Nf3 {[%emt 0:00:09]} O-O {[%emt 0:00:05]} 6. Be2 {[%emt 0:
00:06]} e5 {[%emt 0:00:17]} 7. Be3 {[%emt 0:00:09]} Na6 {[%emt 0:00:05]} 8. O-O
{[%emt 0:00:11]} Ng4 {[%emt 0:00:03]} 9. Bg5 {[%emt 0:00:08]} Qe8 {[%emt 0:00:
04]} 10. dxe5 {[%emt 0:00:13]} dxe5 {[%emt 0:00:14]} 11. h3 {[%emt 0:00:10]} f6
{[%emt 0:00:07]} 12. Bd2 {[%emt 0:00:11]} Nh6 {[%emt 0:00:03]} 13. Be3 {
[%emt 0:00:10]} c6 {[%emt 0:03:02]} 14. c5 {[%emt 0:01:43]} Nc7 {[%emt 0:02:33]
} 15. Nd2 {[%emt 0:01:10]} f5 {[%emt 0:06:41]} 16. exf5 {[%emt 0:09:26]} Nxf5 {
[%emt 0:05:57]} 17. Nde4 {[%emt 0:01:58]} Be6 {[%emt 0:01:12]} 18. Nd6 {
[%emt 0:02:55]} Qe7 {[%emt 0:00:43]} 19. Qd2 {[%emt 0:14:32]} Nxe3 {[%emt 0:08:
42]} 20. Qxe3 {[%emt 0:00:52]} Nd5 {[%emt 0:01:14]} 21. Nxd5 {[%emt 0:05:02]}
cxd5 {[%emt 0:00:10]} 22. Rad1 {[%emt 0:02:45]} b6 {[%emt 0:28:32]} 23. b4 {
[%emt 0:01:03]} a5 {[%emt 0:01:57]} 24. a3 {[%emt 0:00:19]} axb4 {[%emt 0:00:
33]} 25. axb4 {[%emt 0:00:06]} bxc5 {[%emt 0:00:15]} 26. bxc5 {[%emt 0:00:39]}
Kh8 {[%emt 0:08:37]} 27. Bg4 {[%emt 0:07:20]} Bg8 {[%emt 0:01:44]} 28. Rb1 {
[%emt 0:00:41]} e4 {[%emt 0:04:05]} 29. Rb7 {[%emt 0:12:03]} Qe5 {[%emt 0:00:
09]} 30. Rd7 {[%emt 0:01:14]} Ra1 {[%emt 0:01:22]} 31. Be2 {[%emt 0:04:22]} Be6
{[%emt 0:13:24]} 32. Rb7 {[%emt 0:00:17]} Rxf1+ {[%emt 0:03:24]} 33. Bxf1 {
[%emt 0:00:07]} Qf6 {[%emt 0:01:01]} 34. Qg3 {[%emt 0:14:02]} Bh6 {[%emt 0:00:
40]} 35. Rb1 {[%emt 0:02:08]} Bf4 {[%emt 0:01:48]} 36. Qa3 {[%emt 0:00:19]} Be5
{[%emt 0:01:36]} 37. Qa2 {[%emt 0:04:24]} Bd4 {[%emt 0:00:21]} 38. c6 {[%emt 0:
00:13]} Bxf2+ {[%emt 0:00:07]} 39. Kh1 {[%emt 0:00:05]} Bg3 {[%emt 0:00:06]}
0-1

[Event "II Zicosur 2016"]
[Site "Antofagasta"]
[Date "2016.01.07"]
[Round "5"]
[White "Valenzuela Gomez, Fernando"]
[Black "Rodriguez Vila, Andres"]
[Result "0-1"]
[ECO "A89"]
[WhiteElo "2293"]
[BlackElo "2487"]
[Annotator "Robot 9"]
[PlyCount "54"]
[EventDate "2016.??.??"]
[EventCountry "CHI"]
[TimeControl "5400+30"]

1. d4 f5 2. g3 Nf6 3. Bg2 g6 4. Nf3 Bg7 5. c4 O-O 6. O-O d6 7. Nc3 Nc6 8. d5
Na5 9. Qa4 b6 10. Nd2 Bd7 11. Qc2 c5 12. dxc6 Bxc6 13. Bxc6 Nxc6 14. Nf3 Qd7
15. Rb1 e5 16. Bg5 e4 17. Nh4 Ne5 18. Rfd1 Rac8 19. b3 b5 20. cxb5 f4 21. Bxf4
Qh3 22. f3 Nh5 23. Ng2 Rxc3 24. Qxe4 Nf6 25. Qd4 Nfg4 26. Qd5+ Kh8 27. fxg4
Nxg4 0-1

[Event "Zicosur Open"]
[Site "chess24.com"]
[Date "2016.01.08"]
[Round "6.1"]
[White "Granda Zuniga, Julio E"]
[Black "Pichot, Alan"]
[Result "1/2-1/2"]
[WhiteElo "2683"]
[BlackElo "2517"]
[PlyCount "54"]
[EventDate "2016.??.??"]
[WhiteTeam "Perú"]
[BlackTeam "Argentina"]
[WhiteTeamCountry "PER"]
[BlackTeamCountry "ARG"]
[TimeControl "6000+820"]
[WhiteClock "1:06:58"]
[BlackClock "0:35:33"]

1. Nf3 Nf6 2. c4 g6 3. b4 Bg7 4. Bb2 d6 5. d4 O-O 6. Qb3 a5 7. b5 a4 8. Qa3 c6
9. e3 Qa5+ 10. Bc3 Qc7 11. Bd3 Nbd7 12. O-O e5 13. bxc6 bxc6 14. Nbd2 Re8 15.
Ne1 exd4 16. exd4 d5 17. Nef3 Ba6 18. Rfe1 Ne4 19. Nxe4 dxe4 20. Bxe4 Bxc4 21.
Bb4 Nf6 22. Bd6 Bf8 23. Bxf8 Nxe4 24. Ne5 Bd5 25. f3 Nf6 26. Bd6 Qa7 27. Qe3
Re6 1/2-1/2

[Event "Zicosur Open"]
[Site "chess24.com"]
[Date "2016.01.08"]
[Round "6.2"]
[White "Cheparinov, Ivan"]
[Black "Tiviakov, Sergei"]
[Result "1-0"]
[WhiteElo "2682"]
[BlackElo "2611"]
[PlyCount "79"]
[EventDate "2016.??.??"]
[WhiteTeam "Bulgaria"]
[BlackTeam "Holanda"]
[WhiteTeamCountry "BUL"]
[BlackTeamCountry "NED"]
[TimeControl "6000+1470"]
[WhiteClock "0:44:19"]
[BlackClock "0:02:24"]

1. d4 Nf6 2. c4 e6 3. Nf3 b6 4. g3 Bb7 5. Bg2 Be7 6. O-O O-O 7. Nc3 Na6 8. Ne5
d5 9. cxd5 exd5 10. Bf4 c5 11. Rc1 Ne4 12. Nxe4 dxe4 13. dxc5 Nxc5 14. Qc2 Rc8
15. Rcd1 Qe8 16. Bh3 Ne6 17. Qb3 Nc5 18. Qa3 Na4 19. Qe3 f5 20. Rd4 Kh8 21. Nd7
Rf7 22. Rxa4 Qxd7 23. Rxa7 Bc5 24. Qb3 b5 25. Rd1 Qe7 26. Bg5 Qf8 27. Ra5 Bc6
28. Ra6 Bb7 29. Re6 b4 30. Re5 Bb6 31. Qe6 Rc6 32. Qe8 h6 33. Rd7 e3 34. Rxb7
exf2+ 35. Kg2 hxg5 36. Rxf7 f1=Q+ 37. Kxf1 Rc1+ 38. Kg2 Rg1+ 39. Kf3 g4+ 40.
Kf4 1-0

[Event "Zicosur Open"]
[Site "chess24.com"]
[Date "2016.01.08"]
[Round "6.4"]
[White "Lopez Silva, Hugo"]
[Black "Rodriguez Vila, Andres"]
[Result "1-0"]
[WhiteElo "2426"]
[BlackElo "2487"]
[PlyCount "219"]
[EventDate "2016.??.??"]
[WhiteTeam "Chile"]
[BlackTeam "Uruguay"]
[WhiteTeamCountry "CHI"]
[BlackTeamCountry "URU"]
[TimeControl "6000+1255"]
[WhiteClock "0:03:24"]
[BlackClock "0:16:17"]

1. e4 e6 2. Nf3 d5 3. Nc3 Nf6 4. e5 Nfd7 5. d4 Be7 6. Bf4 g5 7. Bg3 h5 8. h4 g4
9. Ng5 Nf8 10. Qd2 Rg8 11. O-O-O Rg7 12. f3 Nc6 13. Ne2 Ng6 14. Nf4 Nxf4 15.
Bxf4 gxf3 16. Nxf3 Qd7 17. Ng5 Nb4 18. Kb1 Qa4 19. a3 Nc6 20. Qd3 Bd7 21. Be2
O-O-O 22. Bxh5 f6 23. Nf3 Rxg2 24. exf6 Bxf6 25. Bg5 Rf8 26. Bxf6 Rxf6 27. Rhg1
Rxg1 28. Rxg1 Rf8 29. Bg6 e5 30. Nxe5 Qxd4 31. Qxd4 Nxd4 32. h5 Ne2 33. Rh1 Ng3
34. Rh2 Be6 35. h6 Ne4 36. c3 Ng5 37. Rh5 Nh3 38. h7 Rh8 39. Rxh3 Bxh3 40. Nf7
Rf8 41. h8=Q Rxh8 42. Nxh8 Kd7 43. Bd3 c5 44. Ng6 Kd6 45. Kc1 a5 46. Kd2 Bd7
47. Ke3 b5 48. Kf4 b4 49. axb4 axb4 50. cxb4 cxb4 51. Ne5 Ba4 52. Nf3 Bb3 53.
Ke3 Kc5 54. Nd4 Bd1 55. Bc2 Bg4 56. Nb3+ Kc4 57. Nd4 Kc5 58. Bf5 Bd1 59. Bd3
Ba4 60. b3 Be8 61. Ne6+ Kd6 62. Ng7 Bf7 63. Kd4 Kd7 64. Nf5 Bh5 65. Ne3 Kd6 66.
Bf1 Bg6 67. Bg2 Bb1 68. Bxd5 Ba2 69. Nc2 Bxb3 70. Bxb3 Ke7 71. Nxb4 Kf6 72. Ke4
Kg5 73. Nd3 Kg6 74. Kf4 Kf6 75. Ne5 Ke7 76. Kf5 Kd6 77. Nd3 Ke7 78. Bc4 Kd7 79.
Ke5 Kc7 80. Ke6 Kc6 81. Ke7 Kc7 82. Nc5 Kb6 83. Nd3 Kc6 84. Ke6 Kc7 85. Bb5 Kb6
86. Ba4 Kc7 87. Ke7 Kb7 88. Kd6 Kb6 89. Bd7 Kb7 90. Bb5 Kb6 91. Bc6 Ka6 92. Kc5
Ka7 93. Nb4 Kb8 94. Nd5 Kc8 95. Kd6 Kb8 96. Kc5 Ka7 97. Kb5 Kb8 98. Bd7 Kb7 99.
Be6 Ka7 100. Bc8 Kb8 101. Ba6 Ka7 102. Ka5 Ka8 103. Kb6 Kb8 104. Ne7 Ka8 105.
Kb5 Kb8 106. Kb6 Ka8 107. Nd5 Kb8 108. Nb4 Ka8 109. Bb7+ Kb8 110. Nc6# 1-0